fUST/lending_fUST_20240125
["ID","MTS","AMOUNT","RATE_DAILY","PERIOD"]
[312703881,1706169039534,-150.0,0.0004203,2]
[312703882,1706169039544,-777.0,0.00042239,2]
[312703883,1706169039553,-181.243588,0.00042317,30]
[312703884,1706169039562,-209.800974,0.00042317,30]
[312703885,1706169039571,-157.57723135,0.00042336,30]
[312703886,1706169039580,-157.57723135,0.00042452,30]
[312703887,1706169039589,-155.54233737,0.0004251,30]
[312703888,1706169039598,-440.0,0.00043,90]
[312703889,1706169039608,-440.0,0.00043014,90]
[312703890,1706169039617,-200.0,0.000438,4]
[312703891,1706169039627,-150.0,0.000439,2]
[312703892,1706169039636,-151.63703844,0.00043911,6]
[312703893,1706169039645,-162.39913632,0.0004395,60]
[312703894,1706169039655,-156.1179107,0.00043989,30]
[312703895,1706169039664,-233.06249585,0.00043999,3]
[312703896,1706169039673,-2222.14243605,0.00043999,4]
[312703897,1706169039687,-1092.38594637,0.00043999,4]
[312703956,1706169041391,-1589.21336287,0.00043999,4]
[312703957,1706169041401,-519.66047984,0.00043999,4]
[312703958,1706169041411,-785.40936716,0.00043999,4]
[312703959,1706169041422,-1000.0,0.00043999,14]
[312703960,1706169041432,-429.66873294,0.00043999,4]
[312703961,1706169041441,-522.83398757,0.00043999,4]
[312703962,1706169041452,-41625.51812589,0.00043999,14]
[312703989,1706169043371,-2762.44239506,0.0002661,2]
[312703991,1706169043381,-19809.16239406,0.00043999,14]
[312704190,1706170238498,-154.86062544,0.00028518,2]
[312704192,1706170238510,-1641.73541221,0.00028519,2]
[312704194,1706170238522,-809.54283377,0.00028519,2]
[312704206,1706170238621,-311.16414908,0.00028519,2]
[312704208,1706170238631,-1198.61763963,0.00028519,2]
[312704210,1706170238640,-360.91917073,0.0002852,2]
[312704211,1706170238650,-154.86062544,0.0002852,4]
[312704213,1706170238659,-850.73963902,0.00028521,2]
[312704214,1706170238669,-17089.67229016,0.00028532,2]
[312704216,1706170238681,-7768.52659244,0.00028532,2]
[312704353,1706171432674,-360.91917073,0.00026878,2]
[312704354,1706171432684,-76.56986916,0.00026879,2]
[312704405,1706171438768,-78.29075628,0.00026879,2]
[312704406,1706171438778,-2762.44239506,0.00026879,2]
[312704407,1706171438787,-154.86062544,0.0002688,4]
[312704408,1706171438796,-43.41063588,0.0002688,2]
[312704409,1706171438808,-3877.20671478,0.0002688,2]
[312704410,1706171438817,-850.73963902,0.00026881,2]
[312704411,1706171438825,-15272.0536462,0.00026909,2]
[312704412,1706171438837,-2308.54967521,0.00026909,2]
[312704413,1706171438848,-4872.65460787,0.00026909,2]
[312704473,1706171443690,-2446.74207072,0.00026909,2]
[312704474,1706171443700,-179.6207181,0.000284,4]
[312704475,1706171443709,-124.17581517,0.000285,2]
[312704476,1706171443755,-25.82418483,0.000285,2]
[312704477,1706171443764,-3193.56181162,0.00028532,2]
[312704478,1706171443774,-400.42085716,0.00028532,2]
[312704479,1706171443783,-154.86062544,0.00028532,7]
[312704480,1706171443793,-167.592425,0.00028602,2]
[312704481,1706171443803,-498.66582765,0.00029448,5]
[312704483,1706171443812,-290.53836744,0.00029448,2]
[312704484,1706171443823,-200.0,0.00029581,15]
[312704485,1706171443833,-2543.41353878,0.0002979,7]
[312704486,1706171443842,-2319.1861855,0.0003,3]
[312704487,1706171443853,-688.78830185,0.0003,4]
[312704488,1706171443863,-154.86062544,0.00030134,4]
[312704489,1706171443872,-157.894736,0.00030242,2]
[312704490,1706171443881,-272.59010519,0.00030297,4]
[312704491,1706171444097,-1200.01105483,0.00030297,4]
[312704492,1706171444107,-3200.69471931,0.00030359,2]
[312704493,1706171444116,-4541.83574493,0.0003042,3]
[312704494,1706171444126,-1979.02902988,0.00030482,2]
[312704495,1706171444135,-8920.95192595,0.00030512,4]
[312704496,1706171444144,-3259.52776739,0.00030606,2]
[312704497,1706171444154,-3332.06,0.00030899,3]
[312704498,1706171444164,-606.00416843,0.00030999,4]
[312704499,1706171444173,-2385.68812968,0.00030999,4]
[312704500,1706171444182,-543.97173256,0.00030999,2]
[312704501,1706171444193,-8988.29192363,0.00031,2]
[312704502,1706171444205,-6587.62970662,0.00031,2]
[312704507,1706171446811,-2375.53,0.00031,2]
[312704687,1706172642952,-2348.39149142,0.00026365,2]
[312704767,1706173832040,-1580.03121208,0.00019532,2]
[312704769,1706173832049,-1267.361247,0.00019532,2]
[312704770,1706173832058,-595.3566365,0.00019533,2]
[312704772,1706173832069,-155.00001712,0.00019533,2]
[312704773,1706173832078,-555.60673024,0.00019533,2]
[312704774,1706173832088,-154.84515485,0.00019534,3]
[312704776,1706173832098,-6654.63070251,0.00019534,2]
[312704845,1706173838092,-171.01329024,0.00019531,2]
[312704846,1706173838102,-500.0,0.00019531,2]
[312704847,1706173838111,-3891.975329,0.00019534,2]
[312704849,1706173838121,-329.68526722,0.00019534,2]
[312704851,1706173838130,-3920.61735066,0.00019535,2]
[312704853,1706173838139,-561.83822333,0.00019535,2]
[312704855,1706173838149,-265.58036127,0.00019535,2]
[312704856,1706173838158,-551.30978236,0.00019536,2]
[312704858,1706173838173,-691.64369706,0.00019536,2]
[312704860,1706173838182,-178.98764938,0.00019536,2]
[312704862,1706173838191,-2762.44239506,0.00019537,2]
[312704864,1706173838200,-3643.2931828,0.00019541,2]
[312704866,1706173838210,-679.03304923,0.0002,2]
[312704868,1706173838219,-1198.61763963,0.0002,2]
[312704870,1706173838228,-154.84515485,0.0002,2]
[312704872,1706173838237,-850.73963902,0.0002,2]
[312704875,1706173838246,-323.30988592,0.00020144,2]
[312704878,1706173838255,-2104.41067508,0.00020145,2]
[312704880,1706173838263,-24900.0,0.00020147,2]
[312704882,1706173838272,-167.592426,0.00020664,2]
[312704884,1706173838281,-178.830629,0.00021918,2]
[312704886,1706173838289,-170.0,0.00021976,2]
[312704888,1706173838299,-172.446583,0.00022041,2]
[312704890,1706173838307,-200.0,0.00022726,7]
[312704892,1706173838316,-154.92253873,0.00023394,2]
[312704894,1706173838325,-178.830629,0.00024482,2]
[312704896,1706173838334,-380.0,0.00024658,2]
[312704898,1706173838343,-498.66582765,0.0002496,5]
[312704900,1706173838353,-280.0,0.00024999,7]
[312704902,1706173838362,-4725.91421399,0.00025,2]
[312704904,1706173838372,-1587.46104404,0.00025473,2]
[312704905,1706173838381,-624.92756785,0.00025733,2]
[312704907,1706173838390,-5776.69,0.00025964,3]
[312704908,1706173838399,-6932.02,0.00025974,3]
[312704910,1706173838409,-6286.54,0.00025984,3]
[312704912,1706173838418,-514.74901265,0.00025993,2]
[312704913,1706173838427,-937.28901272,0.00025993,2]
[312704915,1706173838437,-155.359626,0.00025994,2]
[312704917,1706173838446,-13226.17446126,0.00025994,2]
[312704918,1706173838456,-28827.12672469,0.00025995,7]
[312704919,1706173838465,-620.96495057,0.00026365,2]
[312704921,1706173838474,-303.48339143,0.00026365,2]
[312704923,1706173838483,-2085.40450746,0.00026365,2]
[312704925,1706173838492,-167.592425,0.00026392,2]
[312704926,1706173838501,-154.86062544,0.000269,2]
[312704927,1706173838510,-1335.91267832,0.00026908,2]
[312704928,1706173838519,-154.92169905,0.00026909,2]
[312704929,1706173838528,-238.72843329,0.00026909,2]
[312704930,1706173838538,-643.15606122,0.00026909,2]
[312704931,1706173838547,-331.02777896,0.00027,2]
[312704932,1706173838556,-373.0,0.00027499,15]
[312704933,1706173838565,-154.86062544,0.00027999,2]
[312704934,1706173838575,-236.61667227,0.00028,7]
[312704935,1706173838584,-7303.6,0.00028,2]
[312704936,1706173838593,-3626.265497,0.00028,2]
[312704937,1706173838603,-3626.265497,0.00028,2]
[312704938,1706173838612,-153.0,0.00029178,2]
[312704939,1706173838624,-153.0,0.00029178,2]
[312704940,1706173838635,-153.0,0.00029178,2]
[312704941,1706173838644,-153.0,0.00029178,2]
[312704942,1706173838654,-153.0,0.00029178,2]
[312704943,1706173838663,-159.9744068,0.00029178,2]
[312704944,1706173838672,-670.639109,0.0002999,2]
[312704945,1706173838681,-670.639109,0.0002999,2]
[312704946,1706173838690,-263.75256717,0.00029998,2]
[312704947,1706173838700,-176.05257145,0.00029998,2]
[312704948,1706173838710,-2117.42844319,0.00029998,2]
[312704949,1706173838720,-262.04425509,0.00029998,2]
[312704950,1706173838729,-155.13043777,0.00029998,2]
[312704951,1706173838738,-670.639109,0.00029998,2]
[312704952,1706173838748,-670.639109,0.00029998,2]
[312704953,1706173838757,-3626.265497,0.00029998,2]
[312704954,1706173838766,-3626.265497,0.00029998,2]
[312704955,1706173838775,-3626.265497,0.00029999,2]
[312704956,1706173838784,-3626.265497,0.00029999,2]
[312704957,1706173838794,-293.65970894,0.00029999,2]
[312704958,1706173838804,-156.23501844,0.00029999,2]
[312704959,1706173838813,-211.38916615,0.00029999,2]
[312704960,1706173838822,-577.97246029,0.00029999,2]
[312704961,1706173838831,-543.09257964,0.00029999,2]
[312704962,1706173838840,-500.0,0.00029999,2]
[312704963,1706173838849,-500.0,0.00029999,2]
[312704964,1706173838858,-500.0,0.00029999,2]
[312704965,1706173838867,-500.0,0.00029999,2]
[312704966,1706173838877,-500.0,0.00029999,2]
[312704967,1706173838886,-500.0,0.00029999,2]
[312704968,1706173838895,-500.0,0.00029999,2]
[312704969,1706173838904,-500.0,0.00029999,2]
[312704970,1706173838913,-500.0,0.00029999,2]
[312704971,1706173838922,-500.0,0.00029999,2]
[312704972,1706173838931,-500.0,0.00029999,2]
[312704973,1706173838940,-183.96259586,0.00029999,2]
[312704974,1706173838950,-500.0,0.00029999,2]
[312704975,1706173838959,-500.0,0.00029999,2]
[312704976,1706173838968,-500.0,0.00029999,2]
[312704977,1706173838978,-359.77345468,0.00029999,2]
[312704978,1706173839068,-500.0,0.00029999,2]
[312704979,1706173839078,-500.0,0.00029999,2]
[312704980,1706173839087,-500.0,0.00029999,2]
[312704981,1706173839097,-500.0,0.00029999,2]
[312704982,1706173839107,-500.0,0.00029999,2]
[312704983,1706173839116,-500.0,0.00029999,2]
[312704984,1706173839126,-500.0,0.00029999,2]
[312704985,1706173839136,-500.0,0.00029999,2]
[312704986,1706173839146,-500.0,0.00029999,2]
[312704987,1706173839155,-500.0,0.00029999,2]
[312704988,1706173839165,-500.0,0.00029999,2]
[312704989,1706173839175,-500.0,0.00029999,2]
[312704990,1706173839186,-577.833987,0.00029999,2]
[312704991,1706173839195,-500.0,0.00029999,2]
[312704992,1706173839204,-500.0,0.00029999,2]
[312704993,1706173839214,-500.0,0.00029999,2]
[312704994,1706173839225,-500.0,0.00029999,2]
[312704995,1706173839234,-500.0,0.00029999,2]
[312704996,1706173839245,-500.0,0.00029999,2]
[312704997,1706173839255,-500.0,0.00029999,2]
[312704998,1706173839265,-500.0,0.00029999,2]
[312704999,1706173839275,-500.0,0.00029999,2]
[312705000,1706173839284,-500.0,0.00029999,2]
[312705001,1706173839293,-500.0,0.00029999,2]
[312705002,1706173839303,-500.0,0.00029999,2]
[312705003,1706173839314,-500.0,0.00029999,2]
[312705004,1706173839326,-500.0,0.00029999,2]
[312705005,1706173839335,-500.0,0.00029999,2]
[312705006,1706173839344,-500.0,0.00029999,2]
[312705007,1706173839353,-500.0,0.00029999,2]
[312705008,1706173839362,-500.0,0.00029999,2]
[312705009,1706173839371,-500.0,0.00029999,2]
[312705010,1706173839380,-500.0,0.00029999,2]
[312705011,1706173839389,-500.0,0.00029999,2]
[312705012,1706173839398,-500.0,0.00029999,2]
[312705013,1706173839407,-500.0,0.00029999,2]
[312705014,1706173839416,-500.0,0.00029999,2]
[312705015,1706173839425,-500.0,0.00029999,2]
[312705016,1706173839435,-500.0,0.00029999,2]
[312705017,1706173839444,-500.0,0.00029999,2]
[312705018,1706173839453,-500.0,0.00029999,2]
[312705019,1706173839462,-500.0,0.00029999,2]
[312705020,1706173839472,-500.0,0.00029999,2]
[312705021,1706173839481,-500.0,0.00029999,2]
[312705022,1706173839491,-500.0,0.00029999,2]
[312705023,1706173839500,-500.0,0.00029999,2]
[312705024,1706173839509,-500.0,0.00029999,2]
[312705025,1706173839518,-500.0,0.00029999,2]
[312705026,1706173839527,-500.0,0.00029999,2]
[312705027,1706173839536,-300.0,0.00029999,2]
[312705028,1706173839545,-500.0,0.00029999,2]
[312705029,1706173839555,-154.86062544,0.0003,4]
[312705030,1706173839564,-688.78830185,0.0003,4]
[312705031,1706173839573,-670.639109,0.0003,2]
[312705032,1706173839582,-670.639109,0.0003,2]
[312705033,1706173839591,-3626.265497,0.0003,2]
[312705034,1706173839600,-3626.265497,0.0003,2]
[312705035,1706173839610,-139264.62830083,0.0003,4]
[312705036,1706173839619,-2675.51951321,0.00030634,2]
[312705037,1706173839628,-260.18097711,0.00030635,4]
[312705038,1706173839639,-670.639109,0.00030635,2]
[312705039,1706173839648,-670.639109,0.00030635,2]
[312705040,1706173839657,-3626.265497,0.00030635,2]
[312705041,1706173839667,-3626.265497,0.00030635,2]
[312705042,1706173839677,-228.0737053,0.00030636,4]
[312705043,1706173839686,-973.72138555,0.00030636,4]
[312705044,1706173839695,-189.89773254,0.00030637,4]
[312705045,1706173839706,-702.90230444,0.00030637,4]
[312705046,1706173839715,-244.05029278,0.00030637,4]
[312705047,1706173839724,-155.48074807,0.00030637,4]
[312705048,1706173839733,-670.639109,0.00030638,2]
[312705049,1706173839742,-670.639109,0.00030638,2]
[312705050,1706173839751,-2306.34071316,0.00030669,4]
[312705051,1706173839760,-3626.265497,0.00030669,2]
[312705052,1706173839770,-3626.265497,0.00030669,2]
[312705053,1706173839779,-670.639109,0.00030777,2]
[312705054,1706173839790,-670.639109,0.00030777,2]
[312705055,1706173839800,-3626.265497,0.00030777,2]
[312705056,1706173839810,-3626.265497,0.00030777,2]
[312705057,1706173839818,-9562.62474012,0.00030777,4]
[312705058,1706173839828,-2309.13498388,0.00030777,4]
[312705059,1706173839838,-61098.56892066,0.00030777,4]
[312705060,1706173839848,-50000.0,0.00030777,3]
[312705061,1706173839858,-50000.0,0.00030777,3]
[312705062,1706173839867,-87613.43222833,0.00030777,3]
[312705063,1706173839876,-151.63703844,0.00030938,2]
[312705064,1706173839886,-3626.265497,0.00030997,2]
[312705065,1706173839895,-3626.265497,0.00030997,2]
[312705066,1706173839904,-3626.265497,0.00030997,2]
[312705067,1706173839913,-3626.265497,0.00030997,2]
[312705068,1706173839923,-3626.265497,0.00030997,2]
[312705069,1706173839932,-3626.265497,0.00030997,2]
[312705070,1706173839941,-670.639109,0.00030999,2]
[312705071,1706173839950,-670.639109,0.00030999,2]
[312705072,1706173839960,-670.639109,0.00030999,2]
[312705073,1706173839969,-670.639109,0.00030999,2]
[312705074,1706173839978,-670.639109,0.00030999,2]
[312705075,1706173839988,-670.639109,0.00030999,2]
[312705076,1706173839997,-670.639109,0.00030999,2]
[312705077,1706173840006,-670.6391,0.00030999,2]
[312705078,1706173840015,-342.89784498,0.00030999,4]
[312705079,1706173840024,-370.30388146,0.00031,6]
[312705080,1706173840032,-858.31133619,0.00031,4]
[312705081,1706173840041,-573.67263902,0.00031,4]
[312705082,1706173840050,-4290.77402713,0.00031,4]
[312705083,1706173840059,-687.23319626,0.00031,4]
[312705084,1706173840068,-466.1249917,0.00032,3]
[312705085,1706173840077,-174075.21784269,0.00032,15]
[312705086,1706173840086,-681.25029016,0.00032,5]
[312705087,1706173840095,-250.178704,0.00032,2]
[312705088,1706173840104,-250.178704,0.00032,2]
[312705089,1706173840114,-343.644943,0.00032,2]
[312705090,1706173840123,-343.644943,0.00032,2]
[312705091,1706173840132,-161.448442,0.00032,2]
[312705092,1706173840141,-161.448442,0.00032,2]
[312705093,1706173840150,-159.67503241,0.00032999,7]
[312705094,1706173840158,-227.0821289,0.00032999,7]
[312705095,1706173840167,-500.0,0.00032999,7]
[312705096,1706173840177,-569.17334607,0.00032999,7]
[312705097,1706173840186,-166.85042456,0.00032999,7]
[312705098,1706173840195,-32630.78087586,0.00033,10]
[312705127,1706173841184,-254.50470159,0.0002799,3]
[312705128,1706173841205,-490.1510355,0.0002799,3]
[312705129,1706173841221,-1979.10005652,0.0002799,3]
[312705197,1706173846183,-1542.64,0.0001953,2]
[312705198,1706173846251,-1219.80239506,0.0001953,2]
[312705199,1706173846262,-2090.15420639,0.0002799,3]
[312705200,1706173846272,-552.8986022,0.00032998,4]
[312705201,1706173846281,-764.11820616,0.00032999,4]
[312705202,1706173846291,-83426.16020722,0.00033,10]
[312705203,1706173846300,-228.50754628,0.00033,2]
[312705204,1706173846309,-250.178704,0.00033,2]
[312705205,1706173846320,-250.178704,0.00033,2]
[312705206,1706173846330,-343.644943,0.00033,2]
[312705207,1706173846341,-343.644943,0.00033,2]
[312705208,1706173846351,-161.448442,0.00033,2]
[312705209,1706173846361,-161.448442,0.00033,2]
[312705210,1706173846379,-621.23131746,0.00033071,2]
[312705211,1706173846392,-261.85924239,0.00035,4]
[312705212,1706173846402,-657.40715545,0.00035,7]
[312705213,1706173846412,-50000.0,0.00036322,7]
[312705214,1706173846425,-5000.0,0.0003693,7]
[312705215,1706173846434,-5000.0,0.00036973,7]
[312705216,1706173846445,-12263.88700086,0.0003715,5]
[312705217,1706173846454,-250.178704,0.0003913,2]
[312705218,1706173846463,-250.178704,0.0003913,2]
[312705219,1706173846473,-343.644943,0.0003913,2]
[312705220,1706173846482,-343.644943,0.0003913,2]
[312705221,1706173846491,-161.448442,0.0003913,2]
[312705222,1706173846500,-161.448442,0.0003913,2]
[312705223,1706173846509,-151.0,0.00039716,2]
[312705224,1706173846518,-6268.57029315,0.00039716,4]
[312705225,1706173846528,-2000.0,0.0004,2]
[312705226,1706173846537,-5000.0,0.00040117,7]
[312705227,1706173846548,-8400.95944488,0.0004022,7]
[312705228,1706173846558,-152.157976,0.00040302,2]
[312705229,1706173846568,-287.321704,0.00040302,2]
[312705230,1706173846578,-163.089922,0.00040302,2]
[312705231,1706173846588,-209.800975,0.00040302,2]
[312705232,1706173846597,-181.243588,0.00040302,2]
[312705233,1706173846607,-188.43431,0.00040302,2]
[312705234,1706173846617,-181.243588,0.00040302,2]
[312705235,1706173846628,-152.157976,0.00040973,2]
[312705236,1706173846639,-974.83970767,0.00041,5]
[312705237,1706173846648,-500.0,0.00041095,2]
[312705238,1706173846659,-150.0,0.00041186,2]
[312705239,1706173846669,-152.157976,0.00041645,30]
[312705240,1706173846678,-156.35433623,0.00041836,30]
[312705241,1706173846688,-30225.1816,0.00042,7]
[312705242,1706173846699,-250.178704,0.00042,7]
[312705243,1706173846709,-250.178704,0.00042,7]
[312705244,1706173846719,-343.644943,0.00042,7]
[312705245,1706173846729,-343.644943,0.00042,7]
[312705246,1706173846738,-161.448442,0.00042,7]
[312705247,1706173846748,-161.448442,0.00042,7]
[312705248,1706173846757,-156.1179107,0.00042022,30]
[312705249,1706173846766,-157.57723135,0.00042141,30]
[312705250,1706173846775,-777.0,0.00042239,2]
[312705251,1706173846786,-152.157976,0.00042317,30]
[312705252,1706173846795,-188.43431,0.00042317,30]
[312705253,1706173846806,-157.57723135,0.00043341,30]
[312705254,1706173846816,-215.328144,0.00043423,7]
[312705255,1706173846826,-162.39913632,0.000435,60]
[312705256,1706173846836,-155.54233737,0.00043644,30]
[312705257,1706173846846,-200.0,0.000437,4]
[312705258,1706173846855,-173.16008799,0.000439,60]
[312705259,1706173846865,-151.0,0.00043972,7]
[312705260,1706173846875,-75380.29308552,0.00043994,14]
[312705261,1706173846892,-154.84515485,0.00026996,4]
[312705262,1706173846901,-2003.22353537,0.00043994,14]
[312705269,1706174172978,-129938.27344736,0.00044958,7]
[312705270,1706174173001,-28854.2616,0.00044958,120]
[312705271,1706174173024,-190.47755766,0.00044958,120]
[312705272,1706174173048,-203924.47931978,0.00044958,7]
[312705273,1706174173072,-137092.5080752,0.00044958,30]
[312705274,1706174182071,-157.57723135,0.00041785,30]
[312705275,1706174182094,-1318.255355,0.00041829,30]
[312705276,1706174182116,-157.57723135,0.00042014,30]
[312705277,1706174182139,-1318.255355,0.00042352,30]
[312705278,1706174182162,-1318.255355,0.00042875,30]
[312705279,1706174182183,-440.0,0.00043,90]
[312705280,1706174182206,-440.0,0.00043014,90]
[312705281,1706174182229,-156.35433623,0.00043096,30]
[312705282,1706174182251,-1318.255355,0.00043398,30]
[312705283,1706174182274,-1318.255355,0.00043921,30]
[312705284,1706174182297,-25000.0,0.00043995,120]
[312705285,1706174182319,-6435.0,0.00044,120]
[312705286,1706174182342,-2180.0,0.00044,30]
[312705287,1706174182365,-174.75804482,0.00044179,30]
[312705288,1706174182388,-2000.0,0.000445,41]
[312705289,1706174182411,-2000.0,0.0004451,41]
[312705290,1706174182434,-2104.047072,0.0004452,41]
[312705291,1706174182456,-500.0,0.00044589,60]
[312705292,1706174182479,-206.64149497,0.00044589,60]
[312705293,1706174182500,-500.0,0.00044589,60]
[312705294,1706174182524,-500.0,0.00044589,60]
[312705295,1706174182547,-637.7833987,0.00044589,60]
[312705296,1706174182569,-500.0,0.00044589,60]
[312705297,1706174182591,-500.0,0.00044589,60]
[312705298,1706174182628,-156.35433623,0.00044687,30]
[312705299,1706174182655,-2878.65851714,0.000448,30]
[312705300,1706174182697,-273.04386351,0.000448,120]
[312705301,1706174182736,-440.0,0.00044877,90]
[312705302,1706174182760,-575.84559594,0.000449,120]
[312705303,1706174182785,-1148.11,0.00044931,31]
[312705304,1706174182813,-150.5,0.0004496,120]
[312705305,1706174182836,-612.0,0.0004496,120]
[312705306,1706174182861,-450.0,0.0004496,120]
[312705307,1706174182884,-228.0,0.0004496,120]
[312705308,1706174182906,-999.0,0.0004496,31]
[312705309,1706174183057,-172.74,0.0004497,120]
[312705310,1706174183082,-150.5,0.0004497,120]
[312705311,1706174183104,-150.5,0.0004497,120]
[312705312,1706174183127,-612.0,0.0004497,120]
[312705313,1706174183149,-450.0,0.0004497,120]
[312705314,1706174183171,-228.0,0.0004497,120]
[312705315,1706174183193,-999.0,0.0004497,31]
[312705316,1706174183214,-150.5,0.0004498,120]
[312705317,1706174183236,-150.5,0.0004498,120]
[312705318,1706174183258,-150.5,0.0004498,120]
[312705319,1706174183281,-612.0,0.0004498,120]
[312705320,1706174183303,-228.0,0.0004498,120]
[312705321,1706174183326,-450.0,0.0004498,120]
[312705322,1706174183348,-999.0,0.0004498,31]
[312705323,1706174183369,-150.5,0.0004499,120]
[312705324,1706174183392,-277.12,0.0004499,120]
[312705325,1706174183413,-150.5,0.0004499,120]
[312705326,1706174183436,-1914.22067848,0.00045,30]
[312705327,1706174183457,-200.0,0.00045,30]
[312705328,1706174183479,-1000.0,0.00045,120]
[312705329,1706174183503,-1000.0,0.00045,120]
[312705330,1706174183525,-1473.31852193,0.00045,30]
[312705331,1706174183547,-1003.47591028,0.00045,120]
[312705332,1706174183569,-323.02012345,0.00045,120]
[312705333,1706174183591,-532.0,0.00045,120]
[312705334,1706174183614,-206.76675628,0.00045,30]
[312705335,1706174183638,-243.93143403,0.00045058,60]
[312705336,1706174183660,-285.7930391,0.00045058,60]
[312705337,1706174183683,-1148.11,0.00045205,31]
[312705338,1706174183705,-157.57723135,0.00045393,30]
[312705339,1706174183727,-1148.11,0.00045479,31]
[312705340,1706174183751,-1148.11,0.00045753,31]
[312705341,1706174183774,-157.57723135,0.00045822,30]
[312705342,1706174183797,-1148.11,0.00046027,31]
[312705343,1706174183819,-157.57723135,0.00046145,30]
[312705344,1706174183845,-157.57723135,0.00046258,30]
[312705345,1706174183867,-1148.11,0.00046301,31]
[312705346,1706174183889,-157.57723135,0.00046574,30]
[312705347,1706174183911,-1148.11,0.00046575,31]
[312705348,1706174183934,-1148.11,0.00046849,31]
[312705349,1706174183957,-157.57723139,0.00046889,30]
[312705350,1706174183979,-193.0329119,0.00047,30]
[312705351,1706174184001,-447.0,0.00047121,90]
[312705352,1706174184025,-1148.11,0.00047123,31]
[312705353,1706174184048,-150.0,0.00047137,120]
[312705354,1706174184071,-1148.22565024,0.00047397,31]
[312705355,1706174184094,-400.0,0.00047475,120]
[312705356,1706174184116,-205587.35929109,0.000475,45]
[312705357,1706174184138,-208587.62439784,0.000478,30]
[312705358,1706174187721,-103261.62064133,0.000478,30]
[312705359,1706174187746,-817.519,0.00048,120]
[312705360,1706174187769,-817.52,0.00048,120]
[312705361,1706174187792,-223.959,0.00048,120]
[312705362,1706174187815,-817.52,0.00048,120]
[312705363,1706174187838,-223.959,0.00048,120]
[312705364,1706174187860,-817.52,0.00048,120]
[312705365,1706174187882,-223.959,0.00048,120]
[312705366,1706174187906,-817.52,0.00048,120]
[312705367,1706174187928,-223.959,0.00048,120]
[312705368,1706174187949,-223.959,0.00048,120]
[312705369,1706174187971,-1884.0,0.00048219,30]
[312705370,1706174187993,-501.96111893,0.000488,30]
[312705371,1706174188016,-2000.0,0.00048865,30]
[312705372,1706174188139,-155.54233738,0.00048935,30]
[312705373,1706174188163,-150.5,0.00048969,120]
[312705374,1706174188185,-450.0,0.00048969,120]
[312705375,1706174188207,-228.0,0.00048969,120]
[312705376,1706174188229,-612.0,0.00048969,120]
[312705377,1706174188252,-999.0,0.00048969,31]
[312705378,1706174188275,-150.5,0.00048979,120]
[312705379,1706174188297,-450.0,0.00048979,120]
[312705380,1706174188320,-228.0,0.00048979,120]
[312705381,1706174188342,-612.0,0.00048979,120]
[312705382,1706174188365,-999.0,0.00048979,31]
[312705383,1706174188388,-150.5,0.00048989,120]
[312705384,1706174188411,-228.0,0.00048989,120]
[312705385,1706174188433,-450.0,0.00048989,120]
[312705386,1706174188457,-612.0,0.00048989,120]
[312705387,1706174188480,-163.54,0.00048989,120]
[312705388,1706174188502,-999.0,0.00048989,31]
[312705389,1706174188524,-750.0,0.00048999,120]
[312705390,1706174188547,-606.87180128,0.00049,30]
[312705391,1706174188569,-50000.0,0.00049,30]
[312705392,1706174188593,-150.0,0.00049,30]
[312705393,1706174188617,-29751.03986862,0.00049,30]
[312705394,1706174188641,-500.0,0.00049315,120]
[312705395,1706174188663,-500.0,0.00049315,120]
[312705396,1706174188686,-500.0,0.00049315,120]
[312705397,1706174188708,-503.34774243,0.00049315,120]